{"text_format":"3","workbook":"xlsx","n_sheets":2,"sheets":["ZAČETEK","LETNI ČASOVNI LIST"],"not_rendered":{"defined_names":2},"read":"whole","date_system":"1900"}

{"sheet":"ZAČETEK","index":0,"n_rows":8,"n_cols":2,"rows_kept":8}
[null,"O TEJ PREDLOGI"]
[null,"S to časovno kartico lahko spremljate delovne ure zaposleni časovna kartica, mesecu in letu."]
[null,"Vnesite osnovne informacije, kot so ime zaposlenega, ime vodje, e-poštni naslov in telefonsko številko. "]
[null,"V posamezne tabele z meseci vnesite delovne ure. Zabeležite redne ure in nadure v ločene stolpce za vsak delavnik v tednu. "]
[null,"Skupno število delovnih ur, redne ure in nadure so samodejno izračunane. "]
[null,"Opombe:"]
[null,"Dodatna navodila so na voljo v stolpcu A na delovnem listu LETNI ČASOVNI LIST. To besedilo je bilo skrito namenoma. Če želite besedilo premakniti, izberite stolpec A, nato izberite še IZBRIŠI. Če želite besedilo razkriti, izberite stolpec A, nato zamenjajte barvo pisave. "]
[null,"Če želite izvedeti več o tabelah, znotraj tabele pritisnite SHIFT in nato F10, izberite možnost TABELA in nato izberite še NADOMESTNO BESEDILO."]

{"sheet":"LETNI ČASOVNI LIST","index":1,"n_rows":132,"n_cols":15,"rows_kept":132,"merged":[[0,1,0,2],[0,4,0,14],[10,6,10,7],[21,6,21,7],[32,6,32,7],[33,4,33,14],[43,6,43,7],[54,6,54,7],[65,6,65,7],[66,4,66,14],[76,6,76,7],[87,6,87,7],[98,6,98,7],[99,4,99,14],[109,6,109,7],[120,6,120,7],[131,6,131,7]]}
["Na tem delovnem listu lahko ustvarite dnevni, tedenski, mesečni ali letni časovni list zaposlenega. \nKoristna navodila za uporabo tega delovnega zvezka najdete v celicah v tem stolpcu. Puščica dol za začetek dela.\nNaslov tega delovnega lista je v desni celici, naslovi za razdelek z meseci januar, februar in marec pa so v celici E1.","ZAPOSLENI \nČASOVNA KARTICA",null,null,"Januar, februar, marec      Zaposleni časovna kartica: dnevno, tedensko, mesečno, letno"]
["Ime zaposlenega vnesite v celico C2, redne ure in nadure pa se v tabeli za januar začnejo v celici E2.","Ime zaposlenega:",null,null,"Januar","Teden 1","Nadure","Teden 2","Nadure  ","Teden 3","Nadure   ","Teden 4","Nadure    ","Teden 5","Nadure     "]
["Ime vodje vnesite v celico C3.","Vodja:",null,null,"Ponedeljek",{"v":8,"d":"8.0"}]
["E-poštni naslov vnesite v celico C4.","E-pošta:",null,null,"Torek",{"v":8,"d":"8.0"},{"v":2,"d":"2.0"}]
["Telefonsko številko vnesite v celico C5. Naslednji korak je v celici A9.","Telefon:",null,null,"Sreda"]
[{"$nulls":4},"Četrtek"]
[{"$nulls":4},"Petek"]
[{"$nulls":4},"Sobota"]
["Skupne letne redne ure so samodejno izračunane v celici C9.","Redne ure:",{"$f":"RedneUre","v":31},null,"Nedelja"]
["Skupne letne nadure so samodejno izračunane v celici C10.","Nadure:",{"$f":"Nadure","v":4},null,"Tedensko skupno število ur",{"$f":"SUM(F3:F9)","v":{"v":16,"d":"16.0"}},{"v":2,"d":"2.0"},{"v":0,"d":"0.0"},{"v":0,"d":"0.0"},{"v":0,"d":"0.0"},{"v":0,"d":"0.0"},{"v":0,"d":"0.0"},{"v":0,"d":"0.0"},{"v":0,"d":"0.0"},{"v":0,"d":"0.0"}]
["Skupno letno število vseh delovnih ur je samodejno izračunano v celici C11. Skupne redne ure za januar v celici F11 in skupne nadure za januar v celici I11 so samodejno izračunane. Naslednji korak je v celici A13.","Vsota",{"$f":"RedneUre+Nadure","v":35},null,{"$f":"TEXT(DATEVALUE(Januar[[#Headers],[Januar]]&\"  \"&YEAR(TODAY())),\"mmm.\")&\" vsota: Redne ure\"","v":"jan. vsota: Redne ure"},{"$f":"SUM(Januar[Teden 1],Januar[Teden 2],Januar[Teden 3],Januar[Teden 4],Januar[Teden 5])","v":{"v":16,"d":"16.0"}},{"$f":"TEXT(DATEVALUE(Januar[[#Headers],[Januar]]&\"  \"&YEAR(TODAY())),\"mmm.\")&\" vsota Nadure\"","v":"jan. vsota Nadure"},null,{"$f":"SUM(Januar[Nadure],Januar[[Nadure  ]],Januar[[Nadure   ]],Januar[[Nadure    ]],Januar[[Nadure     ]])","v":{"v":2,"d":"2.0"}}]
[]
["Vnesite redne ure in nadure v tabelo za februar, ki se začne v celici E13. Naslednji korak je v celici A22.",{"$nulls":3},"Februar","Teden 1","Nadure","Teden 2","Nadure  ","Teden 3","Nadure   ","Teden 4","Nadure    ","Teden 5","Nadure     "]
[{"$nulls":4},"Ponedeljek",{"v":8,"d":"8.0"}]
[{"$nulls":4},"Torek",{"v":7,"d":"7.0"},{"v":2,"d":"2.0"}]
[{"$nulls":4},"Sreda"]
[{"$nulls":4},"Četrtek"]
[{"$nulls":4},"Petek"]
[{"$nulls":4},"Sobota"]
[{"$nulls":4},"Nedelja"]
[{"$nulls":4},"Tedensko skupno število ur",{"$f":"SUM(F14:F20)","v":{"v":15,"d":"15.0"}},{"v":2,"d":"2.0"},{"v":0,"d":"0.0"},{"v":0,"d":"0.0"},{"v":0,"d":"0.0"},{"v":0,"d":"0.0"},{"v":0,"d":"0.0"},{"v":0,"d":"0.0"},{"v":0,"d":"0.0"},{"v":0,"d":"0.0"}]
["Skupne redne ure za februar v celici F22 in skupne nadure za februar v celici I22 so samodejno izračunane. Naslednji korak je v celici A24.",{"$nulls":3},{"$f":"TEXT(DATEVALUE(Februar[[#Headers],[Februar]]&\"  \"&YEAR(TODAY())),\"mmm.\")&\" vsota: Redne ure\"","v":"feb. vsota: Redne ure"},{"$f":"SUM(Februar[Teden 1],Februar[Teden 2],Februar[Teden 3],Februar[Teden 4],Februar[Teden 5])","v":{"v":15,"d":"15.0"}},{"$f":"TEXT(DATEVALUE(Februar[[#Headers],[Februar]]&\" \"&YEAR(TODAY())),\"mmm.\")&\" vsota Nadure\"","v":"feb. vsota Nadure"},null,{"$f":"SUM(Februar[Nadure],Februar[[Nadure  ]],Februar[[Nadure   ]],Februar[[Nadure    ]],Februar[[Nadure     ]])","v":{"v":2,"d":"2.0"}}]
[]
["Vnesite redne ure in nadure v tabelo za marec, ki se začne v celici E24. Naslednji korak je v celici A33.",{"$nulls":3},"Marec","Teden 1","Nadure","Teden 2","Nadure ","Teden 3","Nadure  ","Teden 4","Nadure    ","Teden 5","Nadure     "]
[{"$nulls":4},"Ponedeljek"]
[{"$nulls":4},"Torek"]
[{"$nulls":4},"Sreda"]
[{"$nulls":4},"Četrtek"]
[{"$nulls":4},"Petek"]
[{"$nulls":4},"Sobota"]
[{"$nulls":4},"Nedelja"]
[{"$nulls":4},"Tedensko skupno število ur",{"$f":"SUM(F25:F31)","v":{"v":0,"d":"0.0"}},{"v":0,"d":"0.0"},{"v":0,"d":"0.0"},{"v":0,"d":"0.0"},{"v":0,"d":"0.0"},{"v":0,"d":"0.0"},{"v":0,"d":"0.0"},{"v":0,"d":"0.0"},{"v":0,"d":"0.0"},{"v":0,"d":"0.0"}]
["Skupne redne ure za marec v celici F33 in skupne nadure za marec v celici I33 so samodejno izračunane.",{"$nulls":3},{"$f":"TEXT(DATEVALUE(Marec[[#Headers],[Marec]]&\" \"&YEAR(TODAY())),\"mmm.\")&\" vsota: Redne ure\"","v":"mar. vsota: Redne ure"},{"$f":"SUM(Marec[Teden 1],Marec[Teden 2],Marec[Teden 3],Marec[Teden 4],Marec[Teden 5])","v":{"v":0,"d":"0.0"}},{"$f":"TEXT(DATEVALUE(Marec[[#Headers],[Marec]]&\" \"&YEAR(TODAY())),\"mmm.\")&\" vsota Nadure\"","v":"mar. vsota Nadure"},null,{"$f":"SUM(Marec[Nadure],Marec[[Nadure ]],Marec[[Nadure  ]],Marec[[Nadure    ]],Marec[[Nadure     ]])","v":{"v":0,"d":"0.0"}}]
["Naslovi za drugi razdelek z meseci april, maj in junij so v celici E34. ",{"$nulls":3},"April, maj, junij      Časovna kartica zaposlenega: dnevno, tedensko, mesečno, letno"]
["Vnesite redne ure in nadure v tabelo za april, ki se začne v celici E35. Naslednji korak je v celici A44.",{"$nulls":3},"April","Teden 1","Nadure","Teden 2","Nadure  ","Teden 3","Nadure   ","Teden 4","Nadure    ","Teden 5","Nadure     "]
[{"$nulls":4},"Ponedeljek"]
[{"$nulls":4},"Torek"]
[{"$nulls":4},"Sreda"]
[{"$nulls":4},"Četrtek"]
[{"$nulls":4},"Petek"]
[{"$nulls":4},"Sobota"]
[{"$nulls":4},"Nedelja"]
[{"$nulls":4},"Tedensko skupno število ur",{"$f":"SUM(F36:F42)","v":{"v":0,"d":"0.0"}},{"v":0,"d":"0.0"},{"v":0,"d":"0.0"},{"v":0,"d":"0.0"},{"v":0,"d":"0.0"},{"v":0,"d":"0.0"},{"v":0,"d":"0.0"},{"v":0,"d":"0.0"},{"v":0,"d":"0.0"},{"v":0,"d":"0.0"}]
["Skupne redne ure za april v celici F44 in skupne nadure za april v celici I44 so samodejno izračunane. Naslednji korak je v celici A46.",{"$nulls":3},{"$f":"TEXT(DATEVALUE(April[[#Headers],[April]]&\" \"&YEAR(TODAY())),\"mmm.\")&\" vsota: Redne ure\"","v":"apr. vsota: Redne ure"},{"$f":"SUM(April[Teden 1],April[Teden 2],April[Teden 3],April[Teden 4],April[Teden 5])","v":{"v":0,"d":"0.0"}},{"$f":"TEXT(DATEVALUE(April[[#Headers],[April]]&\" \"&YEAR(TODAY())),\"mmm.\")&\" vsota Nadure\"","v":"apr. vsota Nadure"},null,{"$f":"SUM(April[Nadure],April[[Nadure  ]],April[[Nadure   ]],April[[Nadure    ]],April[[Nadure     ]])","v":{"v":0,"d":"0.0"}}]
[]
["Vnesite redne ure in nadure v tabelo za maj, ki se začne v celici E46. Naslednji korak je v celici A55.",{"$nulls":3},"Maj","Teden 1","Nadure","Teden 2","Nadure  ","Teden 3","Nadure   ","Teden 4","Nadure    ","Teden 5","Nadure     "]
[{"$nulls":4},"Ponedeljek"]
[{"$nulls":4},"Torek"]
[{"$nulls":4},"Sreda"]
[{"$nulls":4},"Četrtek"]
[{"$nulls":4},"Petek"]
[{"$nulls":4},"Sobota"]
[{"$nulls":4},"Nedelja"]
[{"$nulls":4},"Tedensko skupno število ur",{"$f":"SUM(F47:F53)","v":{"v":0,"d":"0.0"}},{"v":0,"d":"0.0"},{"v":0,"d":"0.0"},{"v":0,"d":"0.0"},{"v":0,"d":"0.0"},{"v":0,"d":"0.0"},{"v":0,"d":"0.0"},{"v":0,"d":"0.0"},{"v":0,"d":"0.0"},{"v":0,"d":"0.0"}]
["Skupne redne ure za maj v celici F55 in skupne nadure za maj v celici I55 so samodejno izračunane. Naslednji korak je v celici A57.",{"$nulls":3},{"$f":"TEXT(DATEVALUE(Maj[[#Headers],[Maj]]&\" \"&YEAR(TODAY())),\"mmm.\")&\" vsota: Redne ure\"","v":"maj. vsota: Redne ure"},{"$f":"SUM(Maj[Teden 1],Maj[Teden 2],Maj[Teden 3],Maj[Teden 4],Maj[Teden 5])","v":{"v":0,"d":"0.0"}},{"$f":"TEXT(DATEVALUE(Maj[[#Headers],[Maj]]&\" \"&YEAR(TODAY())),\"mmm.\")&\" vsota Nadure\"","v":"maj. vsota Nadure"},null,{"$f":"SUM(Maj[Nadure],Maj[[Nadure  ]],Maj[[Nadure   ]],Maj[[Nadure    ]],Maj[[Nadure     ]])","v":{"v":0,"d":"0.0"}}]
[]
["Vnesite redne ure in nadure v tabelo za junij, ki se začne v celici E57. Naslednji korak je v celici A66.",{"$nulls":3},"Junij","Teden 1","Nadure","Teden 2","Nadure  ","Teden 3","Nadure   ","Teden 4","Nadure    ","Teden 5","Nadure     "]
[{"$nulls":4},"Ponedeljek"]
[{"$nulls":4},"Torek"]
[{"$nulls":4},"Sreda"]
[{"$nulls":4},"Četrtek"]
[{"$nulls":4},"Petek"]
[{"$nulls":4},"Sobota"]
[{"$nulls":4},"Nedelja"]
[{"$nulls":4},"Tedensko skupno število ur",{"$f":"SUM(F58:F64)","v":{"v":0,"d":"0.0"}},{"v":0,"d":"0.0"},{"v":0,"d":"0.0"},{"v":0,"d":"0.0"},{"v":0,"d":"0.0"},{"v":0,"d":"0.0"},{"v":0,"d":"0.0"},{"v":0,"d":"0.0"},{"v":0,"d":"0.0"},{"v":0,"d":"0.0"}]
["Skupne redne ure za junij v celici F66 in skupne nadure za junij v celici I66 so samodejno izračunane.",{"$nulls":3},{"$f":"TEXT(DATEVALUE(Junij[[#Headers],[Junij]]&\" \"&YEAR(TODAY())),\"mmm.\")&\" vsota: Redne ure\"","v":"jun. vsota: Redne ure"},{"$f":"SUM(Junij[Teden 1],Junij[Teden 2],Junij[Teden 3],Junij[Teden 4],Junij[Teden 5])","v":{"v":0,"d":"0.0"}},{"$f":"TEXT(DATEVALUE(Junij[[#Headers],[Junij]]&\" \"&YEAR(TODAY())),\"mmm.\")&\" vsota Nadure\"","v":"jun. vsota Nadure"},null,{"$f":"SUM(Junij[Nadure],Junij[[Nadure  ]],Junij[[Nadure   ]],Junij[[Nadure    ]],Junij[[Nadure     ]])","v":{"v":0,"d":"0.0"}}]
["Naslovi za tretji razdelek z meseci julij, avgust in september so v celici E67. ",{"$nulls":3},"Julij, avgust, september      Časovna kartica zaposlenega: dnevno, tedensko, mesečno, letno"]
["Vnesite redne ure in nadure v tabelo za julij, ki se začne v celici E68. Naslednji korak je v celici A77.",{"$nulls":3},"Julij","Teden 1","Nadure","Teden 2","Nadure ","Teden 3","Nadure  ","Teden 4","Nadure   ","Teden 5","Nadure     "]
[{"$nulls":4},"Ponedeljek"]
[{"$nulls":4},"Torek"]
[{"$nulls":4},"Sreda"]
[{"$nulls":4},"Četrtek"]
[{"$nulls":4},"Petek"]
[{"$nulls":4},"Sobota"]
[{"$nulls":4},"Nedelja"]
[{"$nulls":4},"Tedensko skupno število ur",{"$f":"SUM(F69:F75)","v":{"v":0,"d":"0.0"}},{"v":0,"d":"0.0"},{"v":0,"d":"0.0"},{"v":0,"d":"0.0"},{"v":0,"d":"0.0"},{"v":0,"d":"0.0"},{"v":0,"d":"0.0"},{"v":0,"d":"0.0"},{"v":0,"d":"0.0"},{"v":0,"d":"0.0"}]
["Skupne redne ure za julij v celici F77 in skupne nadure za julij v celici I77 so samodejno izračunane. Naslednji korak je v celici A79.",{"$nulls":3},{"$f":"TEXT(DATEVALUE(Julij[[#Headers],[Julij]]&\" \"&YEAR(TODAY())),\"mmm.\")&\" vsota: Redne ure\"","v":"jul. vsota: Redne ure"},{"$f":"SUM(Julij[Teden 1],Julij[Teden 2],Julij[Teden 3],Julij[Teden 4],Julij[Teden 5])","v":{"v":0,"d":"0.0"}},{"$f":"TEXT(DATEVALUE(Julij[[#Headers],[Julij]]&\" \"&YEAR(TODAY())),\"mmm.\")&\" vsota Nadure\"","v":"jul. vsota Nadure"},null,{"$f":"SUM(Julij[Nadure],Julij[[Nadure ]],Julij[[Nadure  ]],Julij[[Nadure   ]],Julij[[Nadure     ]])","v":{"v":0,"d":"0.0"}}]
[]
["Vnesite redne ure in nadure v tabelo za avgust, ki se začne v celici E79. Naslednji korak je v celici A88.",{"$nulls":3},"Avgust","Teden 1","Nadure","Teden 2","Nadure ","Teden 3","Nadure   ","Teden 4","Nadure  ","Teden 5","Nadure    "]
[{"$nulls":4},"Ponedeljek"]
[{"$nulls":4},"Torek"]
[{"$nulls":4},"Sreda"]
[{"$nulls":4},"Četrtek"]
[{"$nulls":4},"Petek"]
[{"$nulls":4},"Sobota"]
[{"$nulls":4},"Nedelja"]
[{"$nulls":4},"Tedensko skupno število ur",{"$f":"SUBTOTAL(109,Avgust[Teden 1])","v":{"v":0,"d":"0.0"}},{"$f":"SUBTOTAL(109,Avgust[Nadure])","v":{"v":0,"d":"0.0"}},{"$f":"SUBTOTAL(109,Avgust[Teden 2])","v":{"v":0,"d":"0.0"}},{"$f":"SUBTOTAL(109,Avgust[[Nadure ]])","v":{"v":0,"d":"0.0"}},{"$f":"SUBTOTAL(109,Avgust[Teden 3])","v":{"v":0,"d":"0.0"}},{"$f":"SUBTOTAL(109,Avgust[[Nadure   ]])","v":{"v":0,"d":"0.0"}},{"$f":"SUBTOTAL(109,Avgust[Teden 4])","v":{"v":0,"d":"0.0"}},{"$f":"SUBTOTAL(109,Avgust[[Nadure  ]])","v":{"v":0,"d":"0.0"}},{"$f":"SUBTOTAL(109,Avgust[Teden 5])","v":{"v":0,"d":"0.0"}},{"$f":"SUBTOTAL(109,Avgust[[Nadure    ]])","v":{"v":0,"d":"0.0"}}]
["Skupne redne ure za avgust v celici F88 in skupne nadure za avgust v celici I88 so samodejno izračunane. Naslednji korak je v celici A90.",{"$nulls":3},{"$f":"TEXT(DATEVALUE(Avgust[[#Headers],[Avgust]]&\" \"&YEAR(TODAY())),\"mmm.\")&\" vsota: Redne ure\"","v":"avg. vsota: Redne ure"},{"$f":"SUM(Avgust[Teden 1],Avgust[Teden 2],Avgust[Teden 3],Avgust[Teden 4],Avgust[Teden 5])","v":{"v":0,"d":"0.0"}},{"$f":"TEXT(DATEVALUE(Avgust[[#Headers],[Avgust]]&\" \"&YEAR(TODAY())),\"mmm.\")&\" vsota Nadure\"","v":"avg. vsota Nadure"},null,{"$f":"SUM(Avgust[Nadure],Avgust[[Nadure ]],Avgust[[Nadure   ]],Avgust[[Nadure  ]],Avgust[[Nadure    ]])","v":{"v":0,"d":"0.0"}}]
[]
["Vnesite redne ure in nadure v tabelo za september, ki se začne v celici E90. Naslednji korak je v celici A99.",{"$nulls":3},"September","Teden 1","Nadure","Teden 2","Nadure ","Teden 3","Nadure  ","Teden 4","Nadure   ","Teden 5","Nadure    "]
[{"$nulls":4},"Ponedeljek"]
[{"$nulls":4},"Torek"]
[{"$nulls":4},"Sreda"]
[{"$nulls":4},"Četrtek"]
[{"$nulls":4},"Petek"]
[{"$nulls":4},"Sobota"]
[{"$nulls":4},"Nedelja"]
[{"$nulls":4},"Tedensko skupno število ur",{"$f":"SUBTOTAL(109,September[Teden 1])","v":{"v":0,"d":"0.0"}},{"$f":"SUBTOTAL(109,September[Nadure])","v":{"v":0,"d":"0.0"}},{"$f":"SUBTOTAL(109,September[Teden 2])","v":{"v":0,"d":"0.0"}},{"$f":"SUBTOTAL(109,September[[Nadure ]])","v":{"v":0,"d":"0.0"}},{"$f":"SUBTOTAL(109,September[Teden 3])","v":{"v":0,"d":"0.0"}},{"$f":"SUBTOTAL(109,September[[Nadure  ]])","v":{"v":0,"d":"0.0"}},{"$f":"SUBTOTAL(109,September[Teden 4])","v":{"v":0,"d":"0.0"}},{"$f":"SUBTOTAL(109,September[[Nadure   ]])","v":{"v":0,"d":"0.0"}},{"$f":"SUBTOTAL(109,September[Teden 5])","v":{"v":0,"d":"0.0"}},{"$f":"SUBTOTAL(109,September[[Nadure    ]])","v":{"v":0,"d":"0.0"}}]
["Skupne redne ure za september v celici F99 in skupne nadure za september v celici I99 so samodejno izračunane.",{"$nulls":3},{"$f":"TEXT(DATEVALUE(September[[#Headers],[September]]&\" \"&YEAR(TODAY())),\"mmm.\")&\" vsota: Redne ure\"","v":"sep. vsota: Redne ure"},{"$f":"SUM(September[Teden 1],September[Teden 2],September[Teden 3],September[Teden 4],September[Teden 5])","v":{"v":0,"d":"0.0"}},{"$f":"TEXT(DATEVALUE(September[[#Headers],[September]]&\" \"&YEAR(TODAY())),\"mmm.\")&\" vsota Nadure\"","v":"sep. vsota Nadure"},null,{"$f":"SUM(September[Nadure],September[[Nadure ]],September[[Nadure  ]],September[[Nadure   ]],September[[Nadure    ]])","v":{"v":0,"d":"0.0"}}]
["Naslovi za četrti razdelek z meseci oktober, november in december so v celici E100. ",{"$nulls":3},"Oktober, november, december      Časovna kartica zaposlenega: dnevno, tedensko, mesečno, letno"]
["Vnesite redne ure in nadure v tabelo za oktober, ki se začne v celici E101. Naslednji korak je v celici A110.",{"$nulls":3},"Oktober","Teden 1","Nadure","Teden 2","Nadure ","Teden 3","Nadure  ","Teden 4","Nadure   ","Teden 5","Nadure    "]
[{"$nulls":4},"Ponedeljek"]
[{"$nulls":4},"Torek"]
[{"$nulls":4},"Sreda"]
[{"$nulls":4},"Četrtek"]
[{"$nulls":4},"Petek"]
[{"$nulls":4},"Sobota"]
[{"$nulls":4},"Nedelja"]
[{"$nulls":4},"Tedensko skupno število ur",{"$f":"SUBTOTAL(109,Oktober[Teden 1])","v":{"v":0,"d":"0.0"}},{"$f":"SUBTOTAL(109,Oktober[Nadure])","v":{"v":0,"d":"0.0"}},{"$f":"SUBTOTAL(109,Oktober[Teden 2])","v":{"v":0,"d":"0.0"}},{"$f":"SUBTOTAL(109,Oktober[[Nadure ]])","v":{"v":0,"d":"0.0"}},{"$f":"SUBTOTAL(109,Oktober[Teden 3])","v":{"v":0,"d":"0.0"}},{"$f":"SUBTOTAL(109,Oktober[[Nadure  ]])","v":{"v":0,"d":"0.0"}},{"$f":"SUBTOTAL(109,Oktober[Teden 4])","v":{"v":0,"d":"0.0"}},{"$f":"SUBTOTAL(109,Oktober[[Nadure   ]])","v":{"v":0,"d":"0.0"}},{"$f":"SUBTOTAL(109,Oktober[Teden 5])","v":{"v":0,"d":"0.0"}},{"$f":"SUBTOTAL(109,Oktober[[Nadure    ]])","v":{"v":0,"d":"0.0"}}]
["Skupne redne ure za oktober v celici F110 in skupne nadure za oktober v celici I110 so samodejno izračunane. Naslednji korak je v celici A112.",{"$nulls":3},{"$f":"TEXT(DATEVALUE(Oktober[[#Headers],[Oktober]]&\" \"&YEAR(TODAY())),\"mmm.\")&\" vsota: Redne ure\"","v":"okt. vsota: Redne ure"},{"$f":"SUM(Oktober[Teden 1],Oktober[Teden 2],Oktober[Teden 3],Oktober[Teden 4],Oktober[Teden 5])","v":{"v":0,"d":"0.0"}},{"$f":"TEXT(DATEVALUE(Oktober[[#Headers],[Oktober]]&\" \"&YEAR(TODAY())),\"mmm.\")&\" vsota Nadure\"","v":"okt. vsota Nadure"},null,{"$f":"SUM(Oktober[Nadure],Oktober[[Nadure ]],Oktober[[Nadure  ]],Oktober[[Nadure   ]],Oktober[[Nadure    ]])","v":{"v":0,"d":"0.0"}}]
[]
["Vnesite redne ure in nadure v tabelo za november, ki se začne v celici E112. Naslednji korak je v celici A121.",{"$nulls":3},"November","Teden 1","Nadure","Teden 2","Nadure ","Teden 3","Nadure  ","Teden 4","Nadure    ","Teden 5","Nadure     "]
[{"$nulls":4},"Ponedeljek"]
[{"$nulls":4},"Torek"]
[{"$nulls":4},"Sreda"]
[{"$nulls":4},"Četrtek"]
[{"$nulls":4},"Petek"]
[{"$nulls":4},"Sobota"]
[{"$nulls":4},"Nedelja"]
[{"$nulls":4},"Tedensko skupno število ur",{"$f":"SUBTOTAL(109,November[Teden 1])","v":{"v":0,"d":"0.0"}},{"$f":"SUBTOTAL(109,November[Nadure])","v":{"v":0,"d":"0.0"}},{"$f":"SUBTOTAL(109,November[Teden 2])","v":{"v":0,"d":"0.0"}},{"$f":"SUBTOTAL(109,November[[Nadure ]])","v":{"v":0,"d":"0.0"}},{"$f":"SUBTOTAL(109,November[Teden 3])","v":{"v":0,"d":"0.0"}},{"$f":"SUBTOTAL(109,November[[Nadure  ]])","v":{"v":0,"d":"0.0"}},{"$f":"SUBTOTAL(109,November[Teden 4])","v":{"v":0,"d":"0.0"}},{"$f":"SUBTOTAL(109,November[[Nadure    ]])","v":{"v":0,"d":"0.0"}},{"$f":"SUBTOTAL(109,November[Teden 5])","v":{"v":0,"d":"0.0"}},{"$f":"SUBTOTAL(109,November[[Nadure     ]])","v":{"v":0,"d":"0.0"}}]
["Skupne redne ure za november v celici F121 in skupne nadure za november v celici I121 so samodejno izračunane. Naslednji korak je v celici A123.",{"$nulls":3},{"$f":"TEXT(DATEVALUE(November[[#Headers],[November]]&\" \"&YEAR(TODAY())),\"mmm.\")&\" vsota: Redne ure\"","v":"nov. vsota: Redne ure"},{"$f":"SUM(November[Teden 1],November[Teden 2],November[Teden 3],November[Teden 4],November[Teden 5])","v":{"v":0,"d":"0.0"}},{"$f":"TEXT(DATEVALUE(November[[#Headers],[November]]&\" \"&YEAR(TODAY())),\"mmm.\")&\" vsota Nadure\"","v":"nov. vsota Nadure"},null,{"$f":"SUM(November[Nadure],November[[Nadure ]],November[[Nadure  ]],November[[Nadure    ]],November[[Nadure     ]])","v":{"v":0,"d":"0.0"}}]
[]
["Vnesite redne ure in nadure v tabelo za december, ki se začne v celici E123. Naslednji korak je v celici A132.",{"$nulls":3},"December","Teden 1","Nadure","Teden 2","Nadure ","Teden 3","Nadure  ","Teden 4","Nadure   ","Teden 5","Nadure    "]
[{"$nulls":4},"Ponedeljek"]
[{"$nulls":4},"Torek"]
[{"$nulls":4},"Sreda"]
[{"$nulls":4},"Četrtek"]
[{"$nulls":4},"Petek"]
[{"$nulls":4},"Sobota"]
[{"$nulls":4},"Nedelja"]
[{"$nulls":4},"Tedensko skupno število ur",{"$f":"SUBTOTAL(109,December[Teden 1])","v":{"v":0,"d":"0.0"}},{"$f":"SUBTOTAL(109,December[Nadure])","v":{"v":0,"d":"0.0"}},{"$f":"SUBTOTAL(109,December[Teden 2])","v":{"v":0,"d":"0.0"}},{"$f":"SUBTOTAL(109,December[[Nadure ]])","v":{"v":0,"d":"0.0"}},{"$f":"SUBTOTAL(109,December[Teden 3])","v":{"v":0,"d":"0.0"}},{"$f":"SUBTOTAL(109,December[[Nadure  ]])","v":{"v":0,"d":"0.0"}},{"$f":"SUBTOTAL(109,December[Teden 4])","v":{"v":0,"d":"0.0"}},{"$f":"SUBTOTAL(109,December[[Nadure   ]])","v":{"v":0,"d":"0.0"}},{"$f":"SUBTOTAL(109,December[Teden 5])","v":{"v":0,"d":"0.0"}},{"$f":"SUBTOTAL(109,December[[Nadure    ]])","v":{"v":0,"d":"0.0"}}]
["Skupne redne ure za december v celici F132 in skupne nadure za december v celici I132 so samodejno izračunane.",{"$nulls":3},{"$f":"TEXT(DATEVALUE(December[[#Headers],[December]]&\" \"&YEAR(TODAY())),\"mmm.\")&\" vsota: Redne ure\"","v":"dec. vsota: Redne ure"},{"$f":"SUM(December[Teden 1],December[Teden 2],December[Teden 3],December[Teden 4],December[Teden 5])","v":{"v":0,"d":"0.0"}},{"$f":"TEXT(DATEVALUE(December[[#Headers],[December]]&\" \"&YEAR(TODAY())),\"mmm.\")&\" vsota Nadure\"","v":"dec. vsota Nadure"},null,{"$f":"SUM(G124:G130,I124:I130,K124:K130,M124:M130,O124:O130)","v":{"v":0,"d":"0.0"}}]